bitfinex/quotes_BTCUSD_20240901
["timestamp","ask_amount","ask_price","bid_price","bid_amount"]
[1725232115561,0.347039,57631.0,57622.0,0.173544]
[1725232115562,0.17353,57627.0,57622.0,0.173544]
[1725232115793,0.347047,57629.0,57621.0,0.71509]
[1725232116018,0.173526,57628.0,57623.0,0.17354]
[1725232116249,0.347032,57632.0,57621.0,0.368]
[1725232116472,0.173527,57628.0,57623.0,0.17354]
[1725232116680,0.000818,57629.0,57622.0,0.347087]
[1725232116951,0.000818,57629.0,57625.0,0.173533]
[1725232117197,0.174342,57629.0,57624.0,0.173536]
[1725232117430,0.174342,57629.0,57626.0,0.17353]
[1725232117431,0.000818,57629.0,57626.0,0.17353]
[1725232117678,0.000818,57629.0,57627.0,0.173527]
[1725232117902,0.000818,57629.0,57625.0,0.173533]
[1725232118123,0.000818,57629.0,57624.0,0.1952]
[1725232118124,0.173535,57625.0,57624.0,0.1952]
[1725232118344,0.0182515,57629.0,57624.0,0.1952]
[1725232118345,0.173531,57627.0,57624.0,0.1952]
[1725232118570,0.000818,57629.0,57624.0,0.1952]
[1725232118798,0.17353,57627.0,57624.0,0.1952]
[1725232119268,0.02722638,57628.0,57624.0,0.1952]
[1725232119269,0.173535,57626.0,57624.0,0.1952]
[1725232119508,0.173535,57626.0,57621.0,0.1699]
[1725232119509,0.173544,57622.0,57621.0,0.1699]
[1725232120003,0.000818,57629.0,57621.0,0.1699]
[1725232120004,0.173539,57624.0,57621.0,0.1699]
[1725232120246,0.000818,57629.0,57621.0,0.1699]
[1725232120468,0.173527,57628.0,57622.0,0.347089]
[1725232120712,0.02722725,57624.0,57623.0,0.17354]
[1725232121634,0.02722725,57624.0,57623.0,0.36874]
[1725232121856,0.02722725,57624.0,57623.0,1.062906]
[1725232122329,0.02722725,57624.0,57623.0,1.245606]
[1725232122578,0.02722725,57624.0,57623.0,1.592689]
[1725232122826,0.000818,57629.0,57628.0,0.520579]
[1725232123042,0.000818,57629.0,57628.0,1.45716085]
[1725232123298,0.000818,57629.0,57628.0,1.80421385]
[1725232124682,0.000818,57629.0,57628.0,1.45716085]
[1725232124911,0.000818,57629.0,57628.0,1.80421385]
[1725232125371,0.000818,57629.0,57628.0,0.74005485]
[1725232125617,0.000818,57629.0,57628.0,0.3651]
[1725232125618,0.521388,57629.0,57628.0,0.3651]
[1725232125857,0.868435,57629.0,57628.0,0.1945]
[1725232126113,0.000818,57629.0,57628.0,0.368026]
[1725232126561,0.000818,57629.0,57628.0,0.1945]
[1725232126785,0.1,57638.0,57628.0,0.3651]
[1725232127013,0.346935,57648.0,57628.0,0.3651]
[1725232127014,0.00817,57680.0,57670.0,0.01]
[1725232127339,0.00817,57680.0,57670.0,1.8468]
[1725232127569,0.00817,57680.0,57670.0,1.623]
[1725232127827,0.03539018,57671.0,57670.0,1.82442885]
[1725232128051,0.03539018,57671.0,57670.0,1.86102459]
[1725232128704,0.00817,57680.0,57679.0,1.235765]
[1725232128919,0.00817,57680.0,57679.0,1.49678959]
[1725232129583,0.00817,57680.0,57679.0,0.570273]
[1725232129801,0.00817,57680.0,57679.0,0.917019]
[1725232130258,0.00817,57680.0,57679.0,0.570273]
[1725232130714,0.00817,57680.0,57679.0,0.3969]
[1725232131385,0.00817,57680.0,57679.0,0.1976]
[1725232131603,0.00817,57680.0,57679.0,0.370973]
[1725232131831,0.00817,57680.0,57679.0,0.1976]
[1725232132074,0.00817,57680.0,57679.0,0.370973]
[1725232135239,0.00817,57680.0,57679.0,0.005]
[1725232135458,0.00817,57680.0,57677.0,0.173379]
[1725232135668,0.00817,57680.0,57678.0,0.023]
[1725232136344,0.00817,57680.0,57674.0,0.1993]
[1725232136345,0.00817,57680.0,57675.0,0.023]
[1725232136803,0.00817,57680.0,57676.0,0.173381]
[1725232137261,0.00817,57680.0,57679.0,0.011]
[1725232137262,0.00917,57680.0,57679.0,0.011]
[1725232137709,0.00817,57680.0,57675.0,0.023]
[1725232137961,0.00917,57680.0,57675.0,0.207384]
[1725232138397,0.00817,57680.0,57675.0,0.023]
[1725232138636,0.00817,57680.0,57679.0,0.011]
[1725232138844,0.00917,57680.0,57679.0,0.011]
[1725232140026,0.00817,57680.0,57676.0,0.17338]
[1725232140241,0.00917,57680.0,57676.0,0.17338]
[1725232140680,0.00817,57680.0,57676.0,0.17338]
[1725232141127,0.00917,57680.0,57679.0,0.011]
[1725232141602,0.00817,57680.0,57677.0,0.173378]
[1725232141815,0.00917,57680.0,57678.0,0.173375]
[1725232142032,0.00917,57680.0,57679.0,0.173373]
[1725232142251,0.00917,57680.0,57677.0,0.346758]
[1725232142252,0.00917,57680.0,57677.0,0.173376]
[1725232142509,0.00917,57680.0,57678.0,0.173375]
[1725232142983,0.00817,57680.0,57678.0,0.173375]
[1725232143440,0.00917,57680.0,57679.0,1.31005689]
[1725232143681,0.00917,57680.0,57679.0,1.85550289]
[1725232143918,0.00917,57680.0,57679.0,2.19124889]
[1725232143919,0.00817,57680.0,57679.0,2.19124889]
[1725232144155,0.00917,57680.0,57679.0,2.19124889]
[1725232144626,0.00817,57680.0,57679.0,2.19124889]
[1725232145082,0.00917,57680.0,57679.0,2.20178159]
[1725232146005,0.00817,57687.0,57679.0,2.20178159]
[1725232146006,0.00817,57687.0,57686.0,1.934668]
[1725232146292,0.00817,57687.0,57686.0,2.19569259]
[1725232146530,0.00817,57687.0,57686.0,1.84798859]
[1725232147209,0.00817,57687.0,57686.0,1.86098859]
[1725232148622,0.00817,57687.0,57686.0,1.51428459]
[1725232148859,0.00817,57687.0,57686.0,1.52828459]
[1725232149087,0.00917,57687.0,57686.0,1.52828459]
[1725232149762,0.00917,57687.0,57686.0,1.18158059]
[1725232150003,0.00917,57687.0,57686.0,0.222352]
[1725232150247,0.00917,57687.0,57686.0,0.051]
[1725232150487,0.549594,57687.0,57686.0,0.028]
[1725232150726,0.896292,57687.0,57686.0,0.028]
[1725232150966,0.00917,57687.0,57686.0,0.028]
[1725232151425,0.00917,57687.0,57686.0,0.201352]
[1725232151646,0.00917,57687.0,57686.0,0.89476]
[1725232151887,0.00917,57687.0,57686.0,0.201352]
[1725232152109,0.00917,57687.0,57686.0,0.548056]
[1725232152338,0.00917,57687.0,57686.0,0.88076]
[1725232152661,0.00817,57687.0,57686.0,1.396964]
[1725232152982,0.00817,57687.0,57686.0,1.395964]
[1725232153186,0.00917,57687.0,57686.0,1.405964]
[1725232153393,0.00817,57687.0,57686.0,1.409964]
[1725232153835,0.00917,57687.0,57686.0,1.423964]
[1725232154896,0.00917,57687.0,57686.0,1.770668]
[1725232155174,0.00917,57687.0,57686.0,1.975768]
[1725232156292,0.00817,57721.0,57688.0,0.2639]
[1725232156534,0.00817,57729.0,57688.0,0.2639]
[1725232156535,0.50540786,57728.0,57727.0,0.524687]
[1725232156777,0.50540786,57728.0,57727.0,1.79406211]
[1725232157012,0.0004,57739.0,57735.0,0.17]
[1725232157242,0.0004,57739.0,57737.0,1.41375211]
[1725232157454,0.0004,57739.0,57737.0,1.43575211]
[1725232158387,0.346169,57776.0,57737.0,1.43575211]
[1725232158388,0.50540786,57758.0,57744.0,1.79370511]
[1725232158619,0.50540786,57758.0,57744.0,2.14006111]
[1725232158833,0.00053,57759.0,57744.0,2.13506111]
[1725232159080,0.00053,57759.0,57744.0,2.14006111]
[1725232159289,0.00053,57759.0,57744.0,1.79370511]
[1725232159522,0.00053,57759.0,57744.0,1.81170511]
[1725232159731,0.00053,57759.0,57744.0,1.29199]
[1725232159937,0.00053,57759.0,57744.0,1.47934911]
[1725232160166,0.00053,57759.0,57744.0,1.50145323]
[1725232160382,0.00053,57759.0,57744.0,1.51545323]
[1725232160812,0.00053,57759.0,57744.0,1.86180923]
[1725232161241,0.00053,57759.0,57744.0,2.22316523]
[1725232161481,0.00053,57759.0,57744.0,2.22516523]
[1725232161726,0.00053,57759.0,57744.0,2.32516523]
[1725232161957,0.00053,57759.0,57744.0,1.97880923]
[1725232162182,0.00053,57759.0,57744.0,1.99280923]
[1725232162394,0.00053,57759.0,57744.0,1.99080923]
[1725232162602,0.00053,57759.0,57744.0,1.97680923]
[1725232162824,0.00053,57759.0,57744.0,1.97180923]
[1725232163037,0.02769315,57759.0,57744.0,1.98580923]
[1725232163263,0.00053,57759.0,57744.0,2.33916523]
[1725232163472,0.00053,57759.0,57744.0,1.97880923]
[1725232163688,0.00053,57759.0,57744.0,2.33916523]
[1725232163901,0.00053,57759.0,57744.0,2.32516523]
[1725232164135,0.00053,57759.0,57744.0,2.32316523]
[1725232164349,0.00053,57759.0,57744.0,2.32516523]
[1725232164564,0.00316,57745.0,57744.0,2.32516523]
[1725232164782,0.00316,57745.0,57744.0,2.32316523]
[1725232164997,0.00316,57745.0,57744.0,1.95780923]
[1725232165224,0.00316,57745.0,57744.0,1.99080923]
[1725232165514,0.00316,57745.0,57744.0,1.97680923]
[1725232165724,0.00316,57745.0,57744.0,2.31116523]
[1725232165964,0.00316,57745.0,57744.0,2.33916523]
[1725232167060,0.00316,57745.0,57744.0,1.99080923]
[1725232167290,0.00316,57745.0,57744.0,1.615346]
[1725232167507,0.00316,57745.0,57744.0,1.95280923]
[1725232167714,0.00316,57745.0,57744.0,1.60645323]
[1725232168162,0.00316,57745.0,57744.0,1.49245323]
[1725232168374,0.00316,57745.0,57744.0,1.85780923]
[1725232168606,0.00316,57745.0,57744.0,1.84380923]
[1725232169358,0.00316,57745.0,57744.0,1.85000823]
[1725232169605,0.00316,57745.0,57744.0,1.89200823]
[1725232170053,0.00316,57745.0,57744.0,1.89700823]
[1725232171007,0.00316,57745.0,57744.0,1.90200823]
[1725232171239,0.00316,57745.0,57744.0,1.88800823]
[1725232171457,0.00316,57745.0,57744.0,2.23436423]
[1725232171682,0.00316,57745.0,57744.0,2.24836423]
[1725232171964,0.00316,57745.0,57744.0,1.87300823]
[1725232172205,0.00316,57745.0,57744.0,1.86900823]
[1725232172447,0.00316,57745.0,57744.0,1.87300823]
[1725232172666,0.00316,57745.0,57744.0,1.86180923]
[1725232172859,0.00316,57745.0,57744.0,1.87580923]
[1725232173068,0.00316,57745.0,57744.0,1.48670923]
[1725232173301,0.00316,57745.0,57744.0,1.226246]
[1725232173748,0.00316,57745.0,57744.0,1.46370923]
[1725232174231,0.00316,57745.0,57744.0,1.10335323]
[1725232174478,0.00316,57745.0,57744.0,1.13135323]
[1725232174703,0.00316,57745.0,57744.0,0.014]
[1725232174963,0.00316,57745.0,57729.0,0.346441]
[1725232174964,0.56011,57745.0,57729.0,0.346441]
[1725232175201,0.733285,57745.0,57744.0,0.0148965]
[1725232175417,1.1529635,57745.0,57744.0,0.0148965]
[1725232175691,1.079635,57745.0,57744.0,0.0288965]
[1725232175927,1.079635,57745.0,57744.0,0.0148965]
[1725232176162,1.079635,57745.0,57744.0,0.0008965]
[1725232176669,1.250035,57745.0,57744.0,0.0008965]
[1725232176909,1.430385,57745.0,57744.0,0.0008965]
[1725232177161,1.54660115,57745.0,57744.0,0.0008965]
[1725232177397,1.57287409,57745.0,57744.0,0.0008965]
[1725232177863,1.57287409,57745.0,57744.0,0.0098965]
[1725232178097,1.51159523,57745.0,57744.0,0.0008965]
[1725232178384,1.39252557,57745.0,57744.0,0.0008965]
[1725232178614,1.53014357,57745.0,57744.0,0.0098965]
[1725232178840,1.53014357,57745.0,57744.0,0.0008965]
[1725232179055,1.53014357,57745.0,57744.0,0.0098965]
[1725232179518,1.87849357,57745.0,57744.0,0.0098965]
[1725232179754,2.03207183,57745.0,57744.0,0.0098965]
[1725232179974,2.04704653,57745.0,57744.0,0.0098965]
[1725232180913,1.87649489,57745.0,57744.0,0.0098965]
[1725232181130,1.53014489,57745.0,57744.0,0.0098965]
[1725232181574,1.87649489,57745.0,57744.0,0.0098965]
[1725232181833,1.87649489,57745.0,57711.0,0.346553]
[1725232181834,0.3597,57743.0,57711.0,0.346553]
[1725232182075,0.879423,57723.0,57713.0,0.173269]
[1725232182291,0.879423,57723.0,57706.0,0.706481]
[1725232182292,0.173263,57716.0,57711.0,0.173275]
[1725232182515,0.3597,57723.0,57706.0,0.3599]
[1725232182730,0.706183,57723.0,57715.0,0.173263]
[1725232182956,0.55824,57730.0,57716.0,0.003465]
[1725232183184,0.346453,57728.0,57719.0,0.346503]
[1725232183467,0.11622781,57729.0,57717.0,0.346515]
[1725232183468,0.0271791,57727.0,57717.0,0.346515]
[1725232183664,0.173236,57725.0,57719.0,0.173252]
[1725232183885,0.02166429,57724.0,57711.0,0.693105]
[1725232184133,0.0271791,57727.0,57704.0,0.005]
[1725232184134,0.346473,57725.0,57712.0,0.50887294]
[1725232184357,0.173241,57723.0,57718.0,0.173255]
[1725232184602,0.173242,57723.0,57716.0,0.346519]
[1725232184863,0.20042264,57722.0,57719.0,0.009]
[1725232185315,0.01623404,57721.0,57717.0,0.173259]
[1725232185543,0.20042264,57722.0,57718.0,0.023]
[1725232185754,0.20042264,57722.0,57718.0,0.034]
[1725232186198,0.01623478,57721.0,57718.0,0.034]
[1725232186443,0.01623478,57721.0,57718.0,0.011]
[1725232186444,0.378653,57719.0,57718.0,0.011]
[1725232186662,0.725159,57719.0,57718.0,0.011]
[1725232186869,0.40787341,57719.0,57718.0,0.011]
[1725232187086,0.40787432,57719.0,57718.0,0.011]
[1725232187358,0.39488575,57719.0,57718.0,0.011]
[1725232187579,0.39488575,57719.0,57712.0,0.173272]
[1725232187580,0.173261,57717.0,57712.0,0.173272]
[1725232187815,0.173261,57717.0,57713.0,0.023]
[1725232188250,0.173261,57717.0,57713.0,0.19627]
[1725232188465,0.02718259,57717.0,57713.0,0.023]
[1725232188748,0.02718259,57717.0,57713.0,0.17327]
[1725232188994,0.20144159,57717.0,57713.0,0.18627]
[1725232189428,0.02918259,57717.0,57713.0,0.027]
[1725232189639,0.20244159,57717.0,57713.0,0.027]
[1725232190075,0.20244159,57717.0,57713.0,0.20027]
[1725232190076,0.02918259,57717.0,57713.0,0.20027]
[1725232190296,0.02918259,57717.0,57714.0,0.173267]
[1725232190726,0.02918259,57717.0,57713.0,0.027]
[1725232190949,0.02918259,57717.0,57713.0,0.20027]
[1725232191180,0.02818259,57717.0,57713.0,0.18627]
[1725232191420,0.02818259,57717.0,57713.0,0.17327]
[1725232191421,0.02718259,57717.0,57713.0,0.17327]
[1725232191636,0.02918259,57717.0,57714.0,0.02]
[1725232191850,0.02918259,57717.0,57714.0,0.014]
[1725232192052,0.02918259,57717.0,57713.0,0.17327]
[1725232192053,0.02718259,57717.0,57713.0,0.17327]
[1725232192271,0.02918259,57717.0,57713.0,0.19327]
[1725232192712,0.173262,57716.0,57713.0,0.006]
[1725232193132,0.173262,57716.0,57714.0,0.014]
[1725232193360,0.02818259,57717.0,57714.0,0.014]
[1725232194088,0.173263,57716.0,57714.0,0.014]
[1725232194318,0.173263,57716.0,57712.0,0.196272]
[1725232194529,0.24849906,57716.0,57712.0,0.023]
[1725232194739,0.24849906,57716.0,57713.0,0.014]
[1725232194740,0.24949906,57716.0,57713.0,0.014]
[1725232194946,0.24949906,57716.0,57714.0,0.014]
[1725232195219,0.173263,57716.0,57714.0,0.014]
[1725232195447,0.174263,57716.0,57712.0,0.187273]
[1725232195671,0.175263,57716.0,57713.0,0.023]
[1725232195920,0.174263,57716.0,57713.0,0.023]
[1725232196141,0.173263,57716.0,57713.0,0.023]
[1725232196367,0.175263,57716.0,57714.0,0.028]
[1725232196793,0.174263,57716.0,57714.0,0.014]
[1725232197052,0.175263,57716.0,57714.0,0.014]
[1725232197511,0.13076436,57719.0,57713.0,0.037]
[1725232197777,0.13076436,57719.0,57714.0,0.173266]
[1725232197778,0.02818266,57716.0,57714.0,0.173266]
[1725232198225,0.02818266,57716.0,57697.0,0.002]
[1725232198226,0.1723,57714.0,57706.0,0.173291]
[1725232198491,0.346549,57712.0,57707.0,0.023]
[1725232198732,0.287078,57711.0,57693.0,0.346659]
[1725232198946,0.37347542,57714.0,57687.0,0.2015]
[1725232198947,0.173317,57698.0,57687.0,0.2015]
[1725232199160,0.20117542,57709.0,57692.0,0.173333]
[1725232199161,0.17332,57697.0,57692.0,0.173333]
[1725232199606,0.31595352,57699.0,57692.0,0.173333]
[1725232199876,0.3466,57704.0,57689.0,0.173342]
[1725232200111,0.173315,57699.0,57691.0,0.34667]
[1725232200339,0.001,57712.0,57697.0,0.519957]
[1725232200340,0.001,57698.0,57697.0,0.519957]
[1725232200806,0.001,57698.0,57688.0,0.346689]
[1725232201017,0.001,57698.0,57687.0,0.024]
[1725232201018,0.2018,57697.0,57687.0,0.024]
[1725232201251,0.37512,57697.0,57691.0,0.173334]
[1725232201480,0.506637,57698.0,57690.0,0.346679]
[1725232201481,0.001,57698.0,57690.0,0.346679]
[1725232201708,0.175316,57698.0,57697.0,0.007]
[1725232201940,0.86858,57698.0,57697.0,0.007]
[1725232202199,0.346616,57701.0,57686.0,0.0008965]
[1725232202200,0.346622,57700.0,57686.0,0.0008965]
[1725232202439,0.173344,57689.0,57686.0,0.0008965]
[1725232202888,0.346676,57691.0,57686.0,0.0008965]
[1725232202889,0.173349,57687.0,57686.0,0.0008965]
[1725232203346,0.545783,57690.0,57686.0,0.0008965]
[1725232203347,0.1991,57690.0,57686.0,0.0008965]
[1725232203599,0.1991,57690.0,57686.0,0.1742475]
[1725232203846,0.02719593,57688.0,57686.0,0.0008965]
[1725232204261,0.01626758,57687.0,57686.0,0.0008965]
[1725232204528,0.02719593,57688.0,57686.0,0.0008965]
[1725232204756,0.18962612,57687.0,57686.0,0.0008965]
[1725232204986,1.015239,57687.0,57686.0,0.0008965]
[1725232205680,1.03152023,57687.0,57686.0,0.0008965]
[1725232205888,1.37529134,57687.0,57686.0,0.0008965]
[1725232206128,1.47629134,57687.0,57686.0,0.0088965]
[1725232206381,1.84524298,57687.0,57686.0,0.0088965]
[1725232206880,1.84525031,57687.0,57686.0,0.0088965]
[1725232207102,1.83188864,57687.0,57686.0,0.0088965]
[1725232207318,1.8452467,57687.0,57686.0,0.0088965]
[1725232207547,1.8442467,57687.0,57686.0,0.0008965]
[1725232208018,1.8452467,57687.0,57686.0,0.0088965]
[1725232208236,0.274349,57687.0,57686.0,0.0088965]
[1725232208460,1.129531,57687.0,57686.0,0.0008965]
[1725232208696,1.49057713,57687.0,57686.0,0.0008965]
[1725232208903,1.65912877,57687.0,57686.0,0.0008965]
[1725232210254,1.65913754,57687.0,57686.0,0.0008965]
[1725232210563,0.7971899,57687.0,57686.0,0.0008965]
[1725232210754,0.001,57687.0,57686.0,0.1742485]
[1725232210962,0.001,57687.0,57686.0,0.0008965]
[1725232212324,0.02719593,57688.0,57686.0,0.0008965]
[1725232213551,0.3858,57687.0,57665.0,0.723125]
[1725232213787,0.3858,57687.0,57656.0,0.013965]
[1725232213788,0.173406,57668.0,57661.0,0.51437286]
[1725232214024,0.520218,57668.0,57661.0,0.51437286]
[1725232214236,0.520218,57668.0,57661.0,0.008965]
[1725232214444,0.173406,57668.0,57661.0,0.008965]
[1725232214726,0.02720756,57668.0,57662.0,0.346848]
[1725232214946,0.02720756,57668.0,57661.0,0.008965]
[1725232214947,0.20061356,57668.0,57661.0,0.008965]
[1725232215169,1.33197902,57668.0,57661.0,0.008965]
[1725232215382,1.27723756,57668.0,57661.0,0.008965]
[1725232215625,1.62404956,57668.0,57661.0,0.008965]
[1725232215842,1.62504956,57668.0,57667.0,0.0148976]
[1725232216050,1.72504956,57668.0,57667.0,0.0148976]
[1725232216260,1.72504956,57668.0,57667.0,0.0008976]
[1725232216261,1.88383117,57668.0,57667.0,0.0008976]
[1725232216478,1.88383117,57668.0,57667.0,0.0038976]
[1725232216718,0.02720756,57668.0,57667.0,0.0038976]
[1725232216990,0.20061356,57668.0,57667.0,0.0038976]
[1725232217215,0.54742556,57668.0,57667.0,0.0038976]
[1725232217440,0.89423756,57668.0,57667.0,0.0038976]
[1725232217666,0.89423756,57668.0,57667.0,0.0008976]
[1725232217892,1.36515392,57668.0,57667.0,0.0008976]
[1725232218149,1.67165392,57668.0,57667.0,0.0038976]
[1725232218398,1.71789081,57668.0,57667.0,0.0038976]
[1725232218623,1.73123676,57668.0,57667.0,0.0008976]
[1725232219112,2.41459276,57668.0,57667.0,0.0018976]
[1725232219353,2.75640476,57668.0,57667.0,0.0018976]
[1725232219578,1.214073,57657.0,57656.0,0.008965]
[1725232219792,3.46294272,57657.0,57656.0,0.008965]
[1725232220034,2.6040863,57657.0,57656.0,0.008965]
[1725232220275,2.54367126,57657.0,57656.0,0.008965]
[1725232220505,2.89054926,57657.0,57656.0,0.008965]
[1725232220741,2.90054926,57657.0,57656.0,0.008965]
[1725232221188,2.88721646,57657.0,57656.0,0.008965]
[1725232221417,3.0557681,57657.0,57656.0,0.008965]
[1725232221872,0.839817,57657.0,57656.0,0.009965]
[1725232222164,0.013,57657.0,57656.0,0.009965]
[1725232222374,0.346855,57661.0,57656.0,0.008965]
[1725232222814,0.359878,57657.0,57656.0,0.009965]
[1725232223048,0.880195,57657.0,57656.0,0.009965]
[1725232223341,0.533317,57657.0,57656.0,0.009965]
[1725232223587,0.880195,57657.0,57656.0,0.009965]
[1725232223821,1.2908575,57657.0,57656.0,0.008965]
[1725232224031,1.8516635,57657.0,57656.0,0.008965]
[1725232224882,1.8516635,57657.0,57656.0,0.0087343]
[1725232225093,1.8526635,57657.0,57656.0,0.0207343]
[1725232225532,2.0222635,57657.0,57656.0,0.0207343]
[1725232225978,2.3711415,57657.0,57656.0,0.0207343]
[1725232226654,2.0222635,57657.0,57656.0,0.0207343]
[1725232226884,2.0222635,57657.0,57656.0,0.0087343]
[1725232226885,1.7090865,57657.0,57656.0,0.0087343]
[1725232227084,2.0579645,57657.0,57656.0,0.0087343]
[1725232227276,2.0559645,57657.0,57656.0,0.0087343]
[1725232227542,1.7090865,57657.0,57656.0,0.0087343]
[1725232227775,1.603124,57657.0,57656.0,0.0097343]
[1725232228000,1.950002,57657.0,57656.0,0.0097343]
[1725232228226,1.950002,57657.0,57656.0,0.0087343]
[1725232228227,0.967195,57657.0,57656.0,0.0087343]
[1725232228685,0.620317,57657.0,57656.0,0.0087343]
[1725232228917,0.280439,57657.0,57656.0,0.0097343]
[1725232229134,0.107,57657.0,57656.0,0.0097343]
[1725232229353,0.3431686,57657.0,57656.0,0.0097343]
[1725232229569,0.280439,57657.0,57656.0,0.0097343]
[1725232229816,0.107,57657.0,57656.0,0.0097343]
[1725232230057,0.03421417,57657.0,57656.0,0.0097343]
[1725232230284,0.30065317,57657.0,57656.0,0.0087343]
[1725232230496,0.12721417,57657.0,57656.0,0.0087343]
[1725232230713,0.02821417,57657.0,57656.0,0.0087343]
[1725232230950,0.21437459,57657.0,57656.0,0.0087343]
[1725232231159,0.21337459,57657.0,57656.0,0.0087343]
[1725232231375,1.25400859,57657.0,57656.0,0.0087343]
[1725232231589,2.79155059,57657.0,57656.0,0.0087343]
[1725232231864,3.58405582,57657.0,57656.0,0.0087343]
[1725232232086,0.1567,57643.0,57618.0,0.008976]
[1725232232314,0.1567,57643.0,57625.0,0.67894186]
[1725232232315,1.06862742,57640.0,57625.0,0.67894186]
[1725232232557,1.06862742,57640.0,57629.0,0.2032]
[1725232232558,1.30064742,57640.0,57629.0,0.2032]
[1725232232779,1.30064742,57640.0,57629.0,0.37672]
[1725232232780,1.16862742,57640.0,57629.0,0.37672]
[1725232233070,1.49676985,57640.0,57617.0,0.519718]
[1725232233322,1.49676985,57640.0,57622.0,0.2032]
[1725232233323,1.84375085,57640.0,57622.0,0.2032]
[1725232233789,1.84375085,57640.0,57623.0,0.17354]
[1725232234007,1.84375085,57640.0,57623.0,0.00347079]
[1725232234008,1.40402085,57640.0,57623.0,0.00347079]
[1725232234227,1.40402085,57640.0,57622.0,0.2032]
[1725232234228,1.35903185,57640.0,57622.0,0.2032]
[1725232234442,1.35903185,57640.0,57626.0,0.173531]
[1725232235101,0.78738243,57640.0,57629.0,0.347043]
[1725232235336,1.51674685,57640.0,57626.0,0.1602]
[1725232235568,1.86372785,57640.0,57626.0,0.1602]
[1725232236019,2.26562785,57640.0,57626.0,0.1602]
[1725232236497,2.26562785,57640.0,57622.0,0.2032]
[1725232237628,2.26562785,57640.0,57618.0,0.008976]
[1725232237629,2.97258985,57640.0,57618.0,0.008976]
[1725232237879,3.18436998,57640.0,57618.0,0.008976]
[1725232238120,1.76488642,57629.0,57618.0,0.008976]
[1725232238340,3.74982842,57629.0,57618.0,0.008976]
[1725232238578,3.85182842,57629.0,57618.0,0.008976]
[1725232239013,3.87706071,57629.0,57618.0,0.008976]
[1725232239433,3.53962271,57629.0,57618.0,0.008976]
[1725232240148,3.55462271,57629.0,57618.0,0.008976]
[1725232240357,3.90166971,57629.0,57618.0,0.008976]
[1725232240576,1.768181,57619.0,57618.0,0.008976]
[1725232240807,3.31569842,57619.0,57618.0,0.008976]
[1725232241057,3.48669842,57619.0,57618.0,0.008976]
[1725232241288,1.41819642,57612.0,57609.0,0.008976]
[1725232241534,2.74406842,57612.0,57609.0,0.008976]
[1725232241774,2.84406842,57612.0,57609.0,0.008976]
[1725232241977,3.19121742,57612.0,57609.0,0.008976]
[1725232242193,3.35976906,57612.0,57609.0,0.008976]
[1725232242455,3.53076906,57612.0,57609.0,0.008976]
[1725232242665,3.18162006,57612.0,57609.0,0.008976]
[1725232242873,3.20886018,57612.0,57609.0,0.008976]
[1725232243093,3.21086018,57612.0,57609.0,0.008976]
[1725232245214,3.21086018,57612.0,57604.0,0.0008987]
[1725232245215,1.41634742,57605.0,57604.0,0.0008987]
[1725232245457,2.76268942,57605.0,57604.0,0.0008987]
[1725232245684,2.59416142,57605.0,57604.0,0.0008987]
[1725232245908,2.45012742,57605.0,57604.0,0.0008987]
[1725232246137,2.87726995,57605.0,57604.0,0.0008987]
[1725232246391,2.69862959,57605.0,57604.0,0.0008987]
[1725232246841,2.46842528,57605.0,57604.0,0.0008987]
[1725232247297,2.12627764,57605.0,57604.0,0.0008987]
[1725232247781,2.47346964,57605.0,57604.0,0.0008987]
[1725232248017,2.51719687,57605.0,57604.0,0.0008987]
[1725232248273,2.47346964,57605.0,57604.0,0.0008987]
[1725232248528,2.47546964,57605.0,57604.0,0.0008987]
[1725232248758,2.64402128,57605.0,57604.0,0.0008987]
[1725232249756,3.04878728,57605.0,57604.0,0.0008987]
[1725232250000,3.07381628,57605.0,57604.0,0.0008987]
[1725232250240,3.07181628,57605.0,57604.0,0.0008987]
[1725232250909,3.07381628,57605.0,57604.0,0.0008987]
[1725232251674,3.07381628,57605.0,57577.0,0.50540786]
[1725232251675,0.72208042,57592.0,57584.0,0.201]
[1725232251918,2.66296242,57592.0,57584.0,0.201]
[1725232252150,2.76296242,57592.0,57584.0,0.201]
[1725232252382,3.16486242,57592.0,57584.0,0.201]
[1725232252624,3.16486242,57592.0,57577.0,0.208]
[1725232252625,3.67819429,57592.0,57577.0,0.208]
[1725232252847,3.67819429,57592.0,57576.0,0.008965]
[1725232252848,1.215655,57582.0,57576.0,0.008965]
[1725232253097,2.51823,57582.0,57576.0,0.008965]
[1725232253350,2.86756,57582.0,57576.0,0.008965]
[1725232253564,1.23884542,57579.0,57576.0,0.008965]
[1725232253787,2.56406,57579.0,57576.0,0.008965]
[1725232254026,2.89944228,57579.0,57576.0,0.008965]
[1725232254284,2.16769528,57579.0,57576.0,0.008965]
[1725232254490,2.12986128,57579.0,57576.0,0.008965]
[1725232254739,1.45736728,57579.0,57576.0,0.008965]
[1725232255708,1.37927856,57579.0,57576.0,0.008965]
[1725232256452,0.427289,57579.0,57576.0,0.008965]
[1725232256664,0.427289,57579.0,57578.0,0.388765]
[1725232256885,0.1,57579.0,57578.0,0.388765]
[1725232257353,0.42715278,57582.0,57578.0,0.388765]
[1725232257586,0.1,57581.0,57578.0,0.388765]
[1725232258292,0.173674,57579.0,57578.0,0.388765]
[1725232258503,0.273674,57579.0,57578.0,0.388765]
[1725232258721,0.621022,57579.0,57578.0,0.388765]
[1725232258932,0.273674,57579.0,57578.0,0.388765]
[1725232259185,0.76057248,57579.0,57578.0,0.008965]
[1725232259391,1.56062065,57579.0,57578.0,0.008965]
[1725232259644,2.13927342,57579.0,57578.0,0.390965]
[1725232259852,0.4999,57579.0,57578.0,0.390965]
[1725232260094,0.673574,57579.0,57578.0,0.390965]
[1725232260324,0.4999,57579.0,57578.0,0.390965]
[1725232260795,0.673574,57579.0,57578.0,0.390965]
[1725232260983,1.069114,57579.0,57578.0,0.390965]
[1725232261475,1.90817958,57579.0,57578.0,0.008965]
[1725232261727,2.25552758,57579.0,57578.0,0.008965]